fUSD/lending_fUSD_20260626
["ID","MTS","AMOUNT","RATE_DAILY","PERIOD"]
[426492099,1782468632000,-166.66,0.00014215,2]
[426492084,1782468632000,-152.0,0.00013972,2]
[426492092,1782468632000,-250.0,0.00014,2]
[426492094,1782468632000,-150.0,0.0001411,2]
[426492101,1782468632000,-498.2109,0.000148,2]
[426492097,1782468632000,-151.0,0.0001411,2]
[426492083,1782468632000,-151.0,0.00013972,2]
[426492074,1782468632000,-151.0,0.00013972,2]
[426492079,1782468632000,-152.0,0.00013972,2]
[426492100,1782468632000,-166.66,0.00014508,2]
[426492067,1782468632000,-150.0,0.00013922,2]
[426492066,1782468632000,-166.66,0.00013922,2]
[426492068,1782468632000,-153.0,0.00013923,2]
[426492069,1782468632000,-152.0,0.00013925,2]
[426492072,1782468632000,-150.0,0.00013972,2]
[426492073,1782468632000,-150.0,0.00013972,2]
[426492080,1782468632000,-151.0,0.00013972,2]
[426492070,1782468632000,-150.0,0.00013934,2]
[426492075,1782468632000,-152.0,0.00013972,2]
[426492085,1782468632000,-151.0,0.00013972,2]
[426492076,1782468632000,-151.0,0.00013972,2]
[426492077,1782468632000,-151.0,0.00013972,2]
[426492078,1782468632000,-150.0,0.00013972,2]
[426492082,1782468632000,-152.0,0.00013972,2]
[426492081,1782468632000,-150.0,0.00013972,2]
[426492071,1782468632000,-152.0,0.00013972,2]
[426492110,1782468632000,-151.0,0.000149,2]
[426492130,1782468632000,-500.0,0.00014999,2]
[426492102,1782468632000,-166.66,0.00014802,2]
[426492124,1782468632000,-152.0,0.00014911,2]
[426492134,1782468632000,-500.0,0.00014999,2]
[426492122,1782468632000,-603.60141796,0.00014902,2]
[426492132,1782468632000,-249.61978847,0.00014999,2]
[426492123,1782468632000,-216.48047229,0.00014908,2]
[426492125,1782468632000,-151.0,0.0001495,2]
[426492131,1782468632000,-500.0,0.00014999,2]
[426492128,1782468632000,-500.0,0.00014999,2]
[426492126,1782468632000,-172.05,0.00014978,2]
[426492136,1782468632000,-195.40473397,0.00014999,2]
[426492135,1782468632000,-225.99279068,0.00014999,2]
[426492138,1782468632000,-158.96424374,0.00014999,2]
[426492137,1782468632000,-227.09177678,0.00014999,2]
[426492141,1782468632000,-9619.10718154,0.00015,2]
[426492140,1782468632000,-542.27995136,0.00014999,2]
[426492111,1782468632000,-151.0,0.000149,2]
[426492127,1782468632000,-201.00592498,0.0001499,2]
[426492133,1782468632000,-500.0,0.00014999,2]
[426492139,1782468632000,-123.72004864,0.00014999,2]
[426492120,1782468632000,-2276.9899,0.000149,2]
[426492104,1782468632000,-215.8,0.0001489,7]
[426492129,1782468632000,-322.39220615,0.00014999,2]
[426492105,1782468632000,-152.0,0.000149,2]
[426492107,1782468632000,-151.0,0.000149,2]
[426492106,1782468632000,-150.0,0.000149,2]
[426492109,1782468632000,-152.0,0.000149,2]
[426492108,1782468632000,-152.0,0.000149,2]
[426492112,1782468632000,-152.0,0.000149,2]
[426492103,1782468632000,-200.0,0.0001489,2]
[426492113,1782468632000,-153.0,0.000149,2]
[426492121,1782468632000,-18473.84164694,0.00014902,2]
[426492115,1782468632000,-151.0,0.000149,2]
[426492119,1782468632000,-29304.74701827,0.000149,2]
[426492116,1782468632000,-150.0,0.000149,2]
[426492118,1782468632000,-46317.2875,0.000149,2]
[426492114,1782468632000,-151.0,0.000149,2]
[426492117,1782468632000,-186.9691619,0.000149,2]
[426492147,1782468638000,-5545.83776723,0.00015,2]
[426492146,1782468638000,-18333.16297282,0.00015,2]
[426492164,1782468641000,-165.49415586,0.0001572,2]
[426492170,1782468641000,-2008.54925714,0.000159,2]
[426492168,1782468641000,-2280.21891562,0.00015807,2]
[426492163,1782468641000,-166.66,0.00015388,2]
[426492169,1782468641000,-1879.98,0.000159,2]
[426492167,1782468641000,-2008.54925714,0.000158,2]
[426492159,1782468641000,-903.96,0.00015,2]
[426492166,1782468641000,-1879.98,0.000158,2]
[426492160,1782468641000,-166.66,0.00015095,2]
[426492150,1782468641000,-2085.38954266,0.00015,2]
[426492157,1782468641000,-1115.6431406,0.00015,2]
[426492154,1782468641000,-429.6948175,0.00015,2]
[426492151,1782468641000,-3154.45550548,0.00015,14]
[426492153,1782468641000,-3830119.38528708,0.00015,2]
[426492152,1782468641000,-8117.34848849,0.00015,2]
[426492156,1782468641000,-153.0,0.00015,2]
[426492155,1782468641000,-352.53185669,0.00015,2]
[426492149,1782468641000,-1593219.38012147,0.00015,2]
[426492148,1782468641000,-310.76999999,0.00015,2]
[426492161,1782468641000,-369.15624766,0.00015148,7]
[426492158,1782468641000,-152.0,0.00015,2]
[426492165,1782468641000,-172.05,0.00015726,2]
[426492162,1782468641000,-172.05,0.00015352,2]
[426492172,1782468641000,-300.0,0.00016,2]
[426492171,1782468641000,-220.87705821,0.0001599,7]
[426492194,1782468641000,-171.43,0.00016712,2]
[426492193,1782468641000,-903.96,0.000167,2]
[426492191,1782468641000,-1879.98,0.000167,2]
[426492189,1782468641000,-1500.0,0.00016623,2]
[426492188,1782468641000,-2008.54925714,0.000166,2]
[426492192,1782468641000,-2008.54925714,0.000167,2]
[426492187,1782468641000,-1879.98,0.000166,2]
[426492185,1782468641000,-172.05,0.00016475,2]
[426492186,1782468641000,-1000.0,0.000165,2]
[426492179,1782468641000,-2008.54925714,0.000162,2]
[426492190,1782468641000,-450.3,0.00016635,2]
[426492177,1782468641000,-500.0,0.00016199,2]
[426492175,1782468641000,-2008.54925714,0.000161,2]
[426492174,1782468641000,-1879.98,0.000161,2]
[426492180,1782468641000,-200.0,0.0001634,2]
[426492178,1782468641000,-1879.98,0.000162,2]
[426492182,1782468641000,-2008.54925714,0.000164,2]
[426492173,1782468641000,-368.4108313,0.00016,2]
[426492184,1782468641000,-231.14,0.00016438,2]
[426492176,1782468641000,-172.05,0.00016101,2]
[426492181,1782468641000,-1879.98,0.000164,2]
[426492183,1782468641000,-666.0,0.00016437,2]
[426492245,1782468642000,-184.0,0.00021,2]
[426492235,1782468642000,-154.0,0.0002,2]
[426492222,1782468642000,-363.80960081,0.00018396,2]
[426492230,1782468642000,-186.0,0.0002,2]
[426492228,1782468642000,-903.96,0.000199,2]
[426492226,1782468642000,-310.0,0.000194,2]
[426492233,1782468642000,-154.0,0.0002,2]
[426492231,1782468642000,-807.0,0.0002,2]
[426492225,1782468642000,-812.0,0.000194,2]
[426492234,1782468642000,-731.297,0.0002,2]
[426492229,1782468642000,-166.0,0.0002,2]
[426492236,1782468642000,-577.0,0.0002,2]
[426492249,1782468642000,-8009.37184323,0.00021,2]
[426492244,1782468642000,-807.0,0.00021,2]
[426492241,1782468642000,-166.0,0.00021,2]
[426492238,1782468642000,-935.0,0.00020162,2]
[426492243,1782468642000,-186.0,0.00021,2]
[426492239,1782468642000,-3649.0,0.00020162,2]
[426492242,1782468642000,-1057.50095512,0.00021,2]
[426492240,1782468642000,-150.0,0.00020547,2]
[426492246,1782468642000,-154.0,0.00021,2]
[426492250,1782468642000,-577.0,0.00021,2]
[426492248,1782468642000,-6111.0,0.00021,2]
[426492224,1782468642000,-1574.1915813,0.00019,2]
[426492251,1782468642000,-793.0,0.00021,2]
[426492254,1782468642000,-1000.0,0.00021917,2]
[426492237,1782468642000,-793.0,0.0002,2]
[426492232,1782468642000,-184.0,0.0002,2]
[426492214,1782468642000,-796.0255365,0.000177,2]
[426492223,1782468642000,-477.0,0.00018467,5]
[426492255,1782468642000,-1000.0,0.00021917,2]
[426492196,1782468642000,-2008.54925714,0.000169,2]
[426492197,1782468642000,-7110.68,0.00016922,2]
[426492195,1782468642000,-1879.98,0.000169,2]
[426492200,1782468642000,-1879.98,0.000171,2]
[426492198,1782468642000,-9999.99,0.00016922,2]
[426492203,1782468642000,-150.0,0.00017162,2]
[426492201,1782468642000,-2008.54925714,0.000171,2]
[426492202,1782468642000,-150.113,0.00017162,2]
[426492199,1782468642000,-1935.48,0.00016922,2]
[426492210,1782468642000,-1879.98,0.000172,2]
[426492208,1782468642000,-935.0,0.00017162,2]
[426492207,1782468642000,-1229.0,0.00017162,2]
[426492209,1782468642000,-3649.0,0.00017162,2]
[426492205,1782468642000,-383.0,0.00017162,2]
[426492206,1782468642000,-1282.965,0.00017162,2]
[426492204,1782468642000,-3570.573,0.00017162,2]
[426492211,1782468642000,-2008.54925714,0.000172,2]
[426492213,1782468642000,-10000.0,0.00017357,2]
[426492212,1782468642000,-10000.0,0.00017331,2]
[426492221,1782468642000,-1284.2874,0.0001813,2]
[426492215,1782468642000,-205.1,0.00017839,2]
[426492216,1782468642000,-1244.07874077,0.0001789,2]
[426492217,1782468642000,-450.3,0.00018005,2]
[426492219,1782468642000,-634.51119359,0.0001813,2]
[426492220,1782468642000,-949.19079799,0.0001813,2]
[426492218,1782468642000,-359.67605432,0.0001813,2]
[426492227,1782468642000,-1000.0,0.000194,2]
[426492247,1782468642000,-15000.0,0.00021,2]
[426492276,1782468642000,-1000.0,0.00021917,2]
[426492252,1782468642000,-1000.0,0.00021917,2]
[426492285,1782468642000,-1000.0,0.00021917,2]
[426492289,1782468642000,-1000.0,0.00021917,2]
[426492286,1782468642000,-1000.0,0.00021917,2]
[426492288,1782468642000,-1000.0,0.00021917,2]
[426492287,1782468642000,-1000.0,0.00021917,2]
[426492295,1782468642000,-1000.0,0.00021917,2]
[426492304,1782468642000,-1000.0,0.00021917,2]
[426492294,1782468642000,-1000.0,0.00021917,2]
[426492303,1782468642000,-1000.0,0.00021917,2]
[426492293,1782468642000,-1000.0,0.00021917,2]
[426492296,1782468642000,-1000.0,0.00021917,2]
[426492298,1782468642000,-1000.0,0.00021917,2]
[426492292,1782468642000,-1000.0,0.00021917,2]
[426492302,1782468642000,-1000.0,0.00021917,2]
[426492299,1782468642000,-1000.0,0.00021917,2]
[426492297,1782468642000,-1000.0,0.00021917,2]
[426492300,1782468642000,-1000.0,0.00021917,2]
[426492305,1782468642000,-1000.0,0.00021917,2]
[426492306,1782468642000,-1000.0,0.00021917,2]
[426492308,1782468642000,-1000.0,0.00021917,2]
[426492307,1782468642000,-1000.0,0.00021917,2]
[426492309,1782468642000,-1000.0,0.00021917,2]
[426492311,1782468642000,-1000.0,0.00021917,2]
[426492315,1782468642000,-1000.0,0.00021917,2]
[426492313,1782468642000,-1000.0,0.00021917,2]
[426492314,1782468642000,-1000.0,0.00021917,2]
[426492253,1782468642000,-1000.0,0.00021917,2]
[426492282,1782468642000,-1000.0,0.00021917,2]
[426492291,1782468642000,-1000.0,0.00021917,2]
[426492301,1782468642000,-1000.0,0.00021917,2]
[426492284,1782468642000,-1000.0,0.00021917,2]
[426492260,1782468642000,-1000.0,0.00021917,2]
[426492283,1782468642000,-1000.0,0.00021917,2]
[426492265,1782468642000,-1000.0,0.00021917,2]
[426492264,1782468642000,-1000.0,0.00021917,2]
[426492256,1782468642000,-1000.0,0.00021917,2]
[426492261,1782468642000,-1000.0,0.00021917,2]
[426492263,1782468642000,-1000.0,0.00021917,2]
[426492257,1782468642000,-1000.0,0.00021917,2]
[426492259,1782468642000,-1000.0,0.00021917,2]
[426492262,1782468642000,-1000.0,0.00021917,2]
[426492266,1782468642000,-1000.0,0.00021917,2]
[426492268,1782468642000,-1000.0,0.00021917,2]
[426492278,1782468642000,-1000.0,0.00021917,2]
[426492270,1782468642000,-1000.0,0.00021917,2]
[426492258,1782468642000,-1000.0,0.00021917,2]
[426492269,1782468642000,-1000.0,0.00021917,2]
[426492290,1782468642000,-1000.0,0.00021917,2]
[426492281,1782468642000,-1000.0,0.00021917,2]
[426492279,1782468642000,-1000.0,0.00021917,2]
[426492274,1782468642000,-1000.0,0.00021917,2]
[426492271,1782468642000,-1000.0,0.00021917,2]
[426492277,1782468642000,-1000.0,0.00021917,2]
[426492280,1782468642000,-1000.0,0.00021917,2]
[426492273,1782468642000,-1000.0,0.00021917,2]
[426492267,1782468642000,-1000.0,0.00021917,2]
[426492275,1782468642000,-1000.0,0.00021917,2]
[426492272,1782468642000,-1000.0,0.00021917,2]
[426492312,1782468642000,-1000.0,0.00021917,2]
[426492378,1782468643000,-418.79446769,0.00022407,2]
[426492379,1782468643000,-553.9,0.00022466,2]
[426492380,1782468643000,-262.58204954,0.00022908,2]
[426492377,1782468643000,-418.79446771,0.00022407,2]
[426492376,1782468643000,-324.32292993,0.00022407,2]
[426492372,1782468643000,-577.0,0.00022,2]
[426492365,1782468643000,-5000.0,0.00021918,2]
[426492368,1782468643000,-807.0,0.00022,2]
[426492363,1782468643000,-1000.0,0.00021917,2]
[426492369,1782468643000,-184.0,0.00022,2]
[426492373,1782468643000,-793.0,0.00022,2]
[426492366,1782468643000,-166.0,0.00022,2]
[426492371,1782468643000,-150.0,0.00022,14]
[426492382,1782468643000,-186.0,0.00023,2]
[426492396,1782468643000,-151.30009532,0.0002362,2]
[426492383,1782468643000,-807.0,0.00023,2]
[426492381,1782468643000,-166.0,0.00023,2]
[426492388,1782468643000,-150.0,0.00023014,2]
[426492389,1782468643000,-245.1201528,0.00023014,2]
[426492387,1782468643000,-793.0,0.00023,2]
[426492385,1782468643000,-154.0,0.00023,2]
[426492386,1782468643000,-577.0,0.00023,2]
[426492390,1782468643000,-336.28,0.000231,14]
[426492392,1782468643000,-3649.0,0.00023162,2]
[426492394,1782468643000,-193.01621321,0.0002362,2]
[426492393,1782468643000,-903.96,0.000236,7]
[426492395,1782468643000,-165.74209898,0.0002362,2]
[426492391,1782468643000,-935.0,0.00023162,2]
[426492370,1782468643000,-154.0,0.00022,2]
[426492384,1782468643000,-184.0,0.00023,2]
[426492374,1782468643000,-324.32292995,0.00022407,2]
[426492318,1782468643000,-1000.0,0.00021917,2]
[426492364,1782468643000,-271.18827639,0.00021917,2]
[426492316,1782468643000,-1000.0,0.00021917,2]
[426492317,1782468643000,-1000.0,0.00021917,2]
[426492319,1782468643000,-1000.0,0.00021917,2]
[426492397,1782468643000,-170.04492392,0.0002362,2]
[426492321,1782468643000,-1000.0,0.00021917,2]
[426492331,1782468643000,-1000.0,0.00021917,2]
[426492338,1782468643000,-1000.0,0.00021917,2]
[426492335,1782468643000,-1000.0,0.00021917,2]
[426492323,1782468643000,-1000.0,0.00021917,2]
[426492344,1782468643000,-1000.0,0.00021917,2]
[426492341,1782468643000,-1000.0,0.00021917,2]
[426492342,1782468643000,-1000.0,0.00021917,2]
[426492325,1782468643000,-1000.0,0.00021917,2]
[426492329,1782468643000,-1000.0,0.00021917,2]
[426492327,1782468643000,-1000.0,0.00021917,2]
[426492343,1782468643000,-1000.0,0.00021917,2]
[426492345,1782468643000,-1000.0,0.00021917,2]
[426492358,1782468643000,-1000.0,0.00021917,2]
[426492362,1782468643000,-1000.0,0.00021917,2]
[426492361,1782468643000,-1000.0,0.00021917,2]
[426492360,1782468643000,-1000.0,0.00021917,2]
[426492359,1782468643000,-1000.0,0.00021917,2]
[426492355,1782468643000,-1000.0,0.00021917,2]
[426492375,1782468643000,-324.32292993,0.00022407,2]
[426492356,1782468643000,-1000.0,0.00021917,2]
[426492351,1782468643000,-1000.0,0.00021917,2]
[426492357,1782468643000,-1000.0,0.00021917,2]
[426492346,1782468643000,-1000.0,0.00021917,2]
[426492350,1782468643000,-1000.0,0.00021917,2]
[426492348,1782468643000,-1000.0,0.00021917,2]
[426492347,1782468643000,-1000.0,0.00021917,2]
[426492353,1782468643000,-1000.0,0.00021917,2]
[426492402,1782468643000,-166.0,0.00024,2]
[426492367,1782468643000,-186.0,0.00022,2]
[426492401,1782468643000,-180.39916215,0.0002362,2]
[426492443,1782468643000,-225.92547967,0.00025714,2]
[426492441,1782468643000,-207.20216426,0.00025714,2]
[426492440,1782468643000,-227.24978344,0.00025714,2]
[426492438,1782468643000,-453.90028595,0.00025714,2]
[426492439,1782468643000,-510.13477176,0.00025714,2]
[426492436,1782468643000,-579.04863963,0.00025714,2]
[426492433,1782468643000,-232.39967403,0.00025714,2]
[426492437,1782468643000,-497.22629695,0.00025714,2]
[426492444,1782468643000,-470.26195433,0.00025714,2]
[426492446,1782468643000,-236.81531478,0.00025714,2]
[426492448,1782468643000,-470.73012555,0.00025714,2]
[426492447,1782468643000,-232.77054054,0.00025714,2]
[426492449,1782468643000,-241.59182681,0.00025714,2]
[426492457,1782468643000,-541.19748646,0.00025714,2]
[426492445,1782468643000,-575.05754413,0.00025714,2]
[426492456,1782468643000,-243.03141254,0.00025714,2]
[426492450,1782468643000,-206.91002856,0.00025714,2]
[426492399,1782468643000,-191.68584804,0.0002362,2]
[426492465,1782468643000,-994.09,0.00025732,7]
[426492463,1782468643000,-209.13440759,0.00025721,2]
[426492462,1782468643000,-222.83170891,0.00025721,2]
[426492464,1782468643000,-661.46,0.00025732,7]
[426492461,1782468643000,-230.84049707,0.00025721,2]
[426492442,1782468643000,-194.74560065,0.00025714,2]
[426492459,1782468643000,-235.89564926,0.0002572,2]
[426492460,1782468643000,-243.28431193,0.00025721,2]
[426492454,1782468643000,-236.58836958,0.00025714,2]
[426492451,1782468643000,-246.85965965,0.00025714,2]
[426492453,1782468643000,-201.23190789,0.00025714,2]
[426492455,1782468643000,-233.58647771,0.00025714,2]
[426492452,1782468643000,-226.18626729,0.00025714,2]
[426492466,1782468643000,-912.93,0.00025732,7]
[426492432,1782468643000,-229.44427417,0.00025714,2]
[426492458,1782468643000,-206.41143334,0.0002572,2]
[426492434,1782468643000,-234.04436313,0.00025714,2]
[426492410,1782468643000,-205.1,0.00024329,2]
[426492413,1782468643000,-386.03242642,0.00024876,2]
[426492411,1782468643000,-598.76,0.00024658,2]
[426492408,1782468643000,-793.0,0.00024,2]
[426492407,1782468643000,-577.0,0.00024,2]
[426492405,1782468643000,-184.0,0.00024,2]
[426492409,1782468643000,-558.50000047,0.00024329,2]
[426492406,1782468643000,-154.0,0.00024,2]
[426492414,1782468643000,-331.48419797,0.00024876,2]
[426492416,1782468643000,-340.08984784,0.00024876,2]
[426492415,1782468643000,-302.60019064,0.00024876,2]
[426492404,1782468643000,-807.0,0.00024,2]
[426492435,1782468643000,-226.28214087,0.00025714,2]
[426492398,1782468643000,-156.75398478,0.0002362,2]
[426492403,1782468643000,-186.0,0.00024,2]
[426492412,1782468643000,-1000.0,0.00024658,2]
[426492400,1782468643000,-156.91004185,0.0002362,2]
[426492417,1782468643000,-313.50796955,0.00024876,2]
[426492420,1782468643000,-360.79832431,0.00024877,2]
[426492430,1782468643000,-301.759,0.00025284,2]
[426492426,1782468643000,-200.0,0.00025,2]
[426492427,1782468643000,-587.0,0.00025,2]
[426492425,1782468643000,-809.0,0.00025,2]
[426492429,1782468643000,-200.0,0.00025027,2]
[426492422,1782468643000,-1050.0,0.000249,30]
[426492418,1782468643000,-383.37169609,0.00024876,2]
[426492421,1782468643000,-2550.0,0.000249,2]
[426492423,1782468643000,-178.0,0.00025,2]
[426492419,1782468643000,-313.8200837,0.00024876,2]
[426492424,1782468643000,-190.0,0.00025,2]
[426492431,1782468643000,-350.01,0.00025677,6]
[426492428,1782468643000,-795.0,0.00025,2]
[426492467,1782468644000,-717.34,0.00025744,7]
[426492469,1782468644000,-666.0,0.00025799,2]
[426492471,1782468644000,-704331.08492892,0.000258,2]
[426492468,1782468644000,-46082.4867049,0.00025787,2]
[426492472,1782468644000,-1914.93164703,0.000258,2]
[426492470,1782468644000,-603.0,0.000258,5]
[426492540,1782468646000,-346.9189356,0.0002605,30]
[426492547,1782468646000,-468.08872625,0.00026272,2]
[426492545,1782468646000,-346.9189356,0.00026198,30]
[426492544,1782468646000,-3649.0,0.00026162,2]
[426492548,1782468646000,-452.56428174,0.00026272,2]
[426492543,1782468646000,-935.0,0.00026162,2]
[426492536,1782468646000,-300.0,0.000259,10]
[426492534,1782468646000,-207.85,0.00025812,2]
[426492531,1782468646000,-200.0,0.000258,10]
[426492539,1782468646000,-407.0,0.00026005,2]
[426492535,1782468646000,-173.45946778,0.00025866,60]
[426492529,1782468646000,-434896.88281114,0.000258,2]
[426492538,1782468646000,-200.05975538,0.00026,2]
[426492541,1782468646000,-150.0,0.00026067,5]
[426492542,1782468646000,-801.78572479,0.00026152,2]
[426492537,1782468646000,-346.9189356,0.00025902,30]
[426492533,1782468646000,-322.48179625,0.000258,2]
[426492528,1782468646000,-319836.48819356,0.000258,2]
[426492527,1782468646000,-150.0,0.00025744,2]
[426492530,1782468646000,-562.92750302,0.000258,2]
[426492526,1782468646000,-212.7244925,0.00022407,2]
[426492525,1782468646000,-151.0,0.00014902,2]
[426492546,1782468646000,-458.88854834,0.00026272,2]
[426492532,1782468646000,-1165.68590968,0.000258,2]
[426492549,1782468646000,-772.06485284,0.00026272,2]
[426492556,1782468646000,-766.74339217,0.00026272,2]
[426492551,1782468646000,-605.20038127,0.00026272,2]
[426492555,1782468646000,-627.01593911,0.00026272,2]
[426492575,1782468646000,-445.66341782,0.00026279,2]
[426492574,1782468646000,-427.87400416,0.00026279,2]
[426492573,1782468646000,-461.68099415,0.00026279,2]
[426492572,1782468646000,-486.56862385,0.00026279,2]
[426492571,1782468646000,-483.18365363,0.00026279,2]
[426492562,1782468646000,-493.71931931,0.00026273,2]
[426492565,1782468646000,-473.17673915,0.00026273,2]
[426492564,1782468646000,-402.46381578,0.00026273,2]
[426492561,1782468646000,-413.82005713,0.00026273,2]
[426492560,1782468646000,-378.75413128,0.00026272,2]
[426492563,1782468646000,-452.37253458,0.00026273,2]
[426492570,1782468646000,-471.79129853,0.00026279,2]
[426492553,1782468646000,-414.40432852,0.00026272,2]
[426492569,1782468646000,-412.82286669,0.00026279,2]
[426492554,1782468646000,-451.85095934,0.00026272,2]
[426492552,1782468646000,-680.17969568,0.00026272,2]
[426492557,1782468646000,-473.63062955,0.00026272,2]
[426492550,1782468646000,-662.96839593,0.00026272,2]
[426492566,1782468646000,-467.17295541,0.00026273,2]
[426492558,1782468646000,-465.54108107,0.00026272,2]
[426492568,1782468646000,-721.59664861,0.00026273,2]
[426492567,1782468646000,-486.06282509,0.00026273,2]
[426492559,1782468646000,-627.6401674,0.00026272,2]
[426492620,1782468647000,-756.50047659,0.00026831,2]
[426492610,1782468647000,-248.8835303,0.00026397,2]
[426492612,1782468647000,-641.62,0.00026504,7]
[426492618,1782468647000,-965.08106605,0.00026831,2]
[426492617,1782468647000,-73716.85176168,0.000268,2]
[426492609,1782468647000,-180.57064713,0.00026397,2]
[426492614,1782468647000,-885.54,0.00026504,7]
[426492613,1782468647000,-964.27,0.00026504,7]
[426492616,1782468647000,-809.46,0.00026652,30]
[426492604,1782468647000,-5000.0,0.00026317,2]
[426492611,1782468647000,-346.9189356,0.00026494,60]
[426492615,1782468647000,-695.82,0.00026516,7]
[426492619,1782468647000,-828.71049491,0.00026831,2]
[426492626,1782468647000,-610.0,0.00027045,2]
[426492627,1782468647000,-150.0,0.00027109,5]
[426492623,1782468647000,-784.55020925,0.00026831,2]
[426492631,1782468647000,-688.94,0.00027397,2]
[426492624,1782468647000,-901.99581077,0.00026831,2]
[426492625,1782468647000,-152.0,0.0002704,4]
[426492621,1782468647000,-850.2246196,0.00026831,2]
[426492628,1782468647000,-539.65,0.00027232,2]
[426492630,1782468647000,-4216.0,0.00027298,10]
[426492622,1782468647000,-783.76992388,0.00026831,2]
[426492632,1782468647000,-500.0,0.00027397,2]
[426492603,1782468647000,-5000.0,0.00026317,2]
[426492629,1782468647000,-1349.11,0.00027238,10]
[426492646,1782468647000,-549.76505798,0.00027397,2]
[426492633,1782468647000,-195.46091319,0.00027397,2]
[426492602,1782468647000,-5000.0,0.00026317,2]
[426492591,1782468647000,-356.28598665,0.00026284,2]
[426492608,1782468647000,-290.2018065,0.00026397,2]
[426492638,1782468647000,-300.0,0.00027397,2]
[426492576,1782468647000,-464.79934806,0.00026279,2]
[426492577,1782468647000,-454.49956689,0.00026279,2]
[426492578,1782468647000,-418.26881517,0.00026279,2]
[426492581,1782468647000,-178.4496134,0.00026284,2]
[426492582,1782468647000,-337.25130543,0.00026284,2]
[426492579,1782468647000,-323.38031261,0.00026283,2]
[426492580,1782468647000,-269.12230831,0.00026284,2]
[426492592,1782468647000,-156.98164314,0.00026284,2]
[426492584,1782468647000,-290.80904941,0.00026284,2]
[426492594,1782468647000,-326.83542446,0.00026284,2]
[426492583,1782468647000,-181.6206726,0.00026284,2]
[426492595,1782468647000,-179.70142677,0.00026284,2]
[426492601,1782468647000,-5000.0,0.00026317,2]
[426492586,1782468647000,-170.81723376,0.00026284,2]
[426492585,1782468647000,-237.16074445,0.00026284,2]
[426492589,1782468647000,-327.03893545,0.00026284,2]
[426492590,1782468647000,-263.72149123,0.00026284,2]
[426492587,1782468647000,-179.60424771,0.00026284,2]
[426492588,1782468647000,-181.4438805,0.00026284,2]
[426492597,1782468647000,-384.26823646,0.00026291,2]
[426492598,1782468647000,-359.26909743,0.00026291,2]
[426492605,1782468647000,-5000.0,0.00026317,2]
[426492599,1782468647000,-313.42528125,0.00026291,2]
[426492596,1782468647000,-385.29792313,0.00026284,2]
[426492606,1782468647000,-346.9189356,0.00026346,30]
[426492600,1782468647000,-152.6791517,0.00026303,2]
[426492607,1782468647000,-212.68326596,0.00026397,2]
[426492593,1782468647000,-446.57213622,0.00026284,2]
[426492645,1782468647000,-366.51003866,0.00027397,2]
[426492682,1782468647000,-688.94,0.0002824,2]
[426492635,1782468647000,-1500.0,0.00027397,2]
[426492666,1782468647000,-994.4525939,0.00027669,2]
[426492672,1782468647000,-151.56702897,0.00027718,19]
[426492675,1782468647000,-1489.0714474,0.000278,2]
[426492674,1782468647000,-1489.0714474,0.000278,2]
[426492679,1782468647000,-800.0,0.00028,2]
[426492673,1782468647000,-1489.07144741,0.000278,2]
[426492676,1782468647000,-688.94,0.00027819,2]
[426492680,1782468647000,-151.56702897,0.00028024,22]
[426492678,1782468647000,-800.0,0.00028,2]
[426492698,1782468647000,-1314.2834,0.000285,2]